bitfinex/quotes_ETHUSD_20250702
["timestamp","ask_amount","ask_price","bid_price","bid_amount"]
[1751419686589,0.2072,2407.0,2406.6,0.2072]
[1751419690335,1.5539,2407.4,2406.9,0.2072]
[1751419690336,7.915,2407.2,2406.9,0.2072]
[1751419690497,2.9702,2407.3,2406.9,0.2072]
[1751419690498,0.2072,2407.3,2406.9,0.2072]
[1751419690693,8.1212,2407.3,2406.9,0.2072]
[1751419690904,8.1358063,2407.5,2406.9,11.5977]
[1751419691191,8.1358063,2407.5,2407.1,0.2072]
[1751419691526,8.1338063,2407.5,2407.1,0.2072]
[1751419692228,8.1338063,2407.5,2406.5,11.84722283]
[1751419692229,1.6412,2407.4,2406.5,11.84722283]
[1751419692388,0.2072,2407.2,2406.7,0.2072]
[1751419693030,1.6412,2407.4,2406.6,0.2072]
[1751419693225,0.2072,2407.0,2406.6,0.2072]
[1751419695203,0.2072,2407.0,2406.6,1.19294863]
[1751419695400,1.6412,2407.4,2406.9,10.0]
[1751419697125,0.2218063,2407.5,2406.9,10.0]
[1751419697126,7.9,2407.3,2406.9,10.0]
[1751419697812,0.2218063,2407.5,2406.9,10.0]
[1751419698019,7.898,2407.4,2406.9,10.0]
[1751419698221,7.898,2407.4,2407.0,1.89627634]
[1751419698626,0.2318063,2407.5,2407.3,10.0]
[1751419699240,1.5032,2408.0,2407.3,10.0]
[1751419699241,10.006,2408.5,2407.4,2.1406]
[1751419699447,0.01,2408.5,2408.0,11.5906]
[1751419701912,1.5552,2408.4,2407.5,11.5041]
[1751419702127,1.5552,2408.4,2407.5,1.5041]
[1751419703347,2.50082,2408.4,2407.5,1.5041]
[1751419703515,2.50082,2408.4,2407.2,11.5887]
[1751419704045,2.50082,2408.4,2407.3,0.55]
[1751419704221,10.646,2408.3,2407.6,10.55]
[1751419704841,0.01,2408.5,2407.8,0.55]
[1751419704842,2.772,2408.5,2407.8,0.55]
[1751419705044,0.01,2408.5,2408.0,10.55]
[1751419705412,0.01,2408.5,2408.3,0.2072]
[1751419706140,0.01,2408.5,2408.3,0.51159476]
[1751419710728,0.2072,2408.4,2408.3,0.30439476]
[1751419710924,0.2072,2408.4,2408.0,0.2072]
[1751419711629,0.01,2408.5,2408.2,0.2072]
[1751419712642,0.01,2408.5,2408.2,0.31185802]
[1751419712843,0.2072,2408.4,2407.9,0.2072]
[1751419713353,0.01,2408.5,2408.2,0.2072]
[1751419715949,0.01,2408.5,2408.2,0.52002487]
[1751419716548,14.395,2409.5,2408.2,0.52002487]
[1751419716549,1.22756981,2409.7,2408.6,1.5971]
[1751419716751,3.47217156,2409.9,2409.5,17.35166335]
[1751419716752,1.8237063,2409.9,2409.5,17.35166335]
[1751419717048,1.8237063,2409.9,2409.2,1.5971]
[1751419717049,0.2218063,2409.9,2409.3,10.55]
[1751419717750,8.0768063,2409.9,2409.3,10.0]
[1751419717955,8.0748063,2409.9,2409.3,10.0]
[1751419720057,1.5054,2409.8,2409.0,0.55]
[1751419720366,1.5054,2409.8,2409.1,0.55]
[1751419720874,1.5054,2409.8,2409.3,10.0]
[1751419720875,7.848,2409.7,2409.3,10.0]
[1751419721570,0.2218063,2409.9,2409.4,0.55]
[1751419721888,0.2218063,2409.9,2409.1,0.55]
[1751419722150,0.2218063,2409.9,2409.2,1.14984263]
[1751419722566,0.2218063,2409.9,2409.1,0.55]
[1751419723248,1.5318,2409.8,2409.0,0.94842634]
[1751419723551,9.3728,2409.8,2409.1,7.35166335]
[1751419726640,9.58,2409.8,2409.4,0.2072]
[1751419727937,9.58,2409.8,2409.4,10.2072]
[1751419728738,1.739,2409.8,2409.4,10.2072]
[1751419728941,9.3618,2409.8,2409.6,0.2072]
[1751419729942,0.2218063,2409.9,2409.6,0.2072]
[1751419730144,8.0498063,2409.9,2409.6,10.2072]
[1751419730550,8.0498063,2409.9,2409.6,0.2072]
[1751419731054,8.0498063,2409.9,2409.6,0.5140108]
[1751419731629,1.6136,2409.8,2409.6,0.5140108]
[1751419731830,1.6136,2409.8,2409.6,0.3068108]
[1751419732054,1.6136,2409.8,2409.5,0.2072]
[1751419732242,1.6136,2409.8,2409.5,2.18147182]
[1751419732939,1.6136,2409.8,2408.7,9.75022824]
[1751419733156,0.2072,2409.6,2409.1,10.2072]
[1751419733330,1.6136,2409.8,2408.7,0.21471]
[1751419733331,1.6136,2409.8,2409.4,10.55]
[1751419733659,8.0428063,2409.9,2409.5,0.2072]
[1751419734446,7.82,2409.8,2409.5,0.2072]
[1751419734656,7.83,2409.8,2409.5,0.2072]
[1751419735253,7.83,2409.8,2409.5,2.02927182]
[1751419735254,0.01,2409.8,2409.5,2.02927182]
[1751419735460,7.828,2409.8,2409.7,0.2072]
[1751419736759,7.828,2409.8,2409.7,0.52601265]
[1751419736928,7.828,2409.8,2409.7,0.2072]
[1751419737334,7.828,2409.8,2409.4,0.2072]
[1751419738259,1.5232,2409.7,2408.8,0.55]
[1751419738460,1.7304,2409.7,2409.3,0.2072]
[1751419738759,1.7304,2409.7,2409.3,0.51959217]
[1751419739260,0.2072,2409.5,2409.3,0.31239217]
[1751419739429,0.2072,2409.5,2409.1,0.2072]
[1751419742879,0.2072,2409.5,2409.1,0.51407387]
[1751419743189,0.2072,2409.5,2409.1,0.2072]
[1751419745572,1.5232,2409.7,2409.1,10.0]
[1751419745734,7.801,2409.4,2409.3,0.2072]
[1751419746163,7.807,2409.8,2409.4,10.0]
[1751419746538,7.807,2409.8,2409.3,9.74271824]
[1751419746539,0.2072,2409.7,2409.3,0.2072]
[1751419746950,0.01,2409.5,2409.3,0.2072]
[1751419747163,0.01,2409.5,2409.4,10.0]
[1751419747334,0.01,2409.5,2409.4,10.2072]
[1751419750789,0.01,2409.5,2409.4,10.7572]
[1751419751981,0.01,2409.5,2409.4,12.3533]
[1751419753375,0.2218063,2409.9,2409.4,12.3533]
[1751419753376,0.2118063,2409.9,2409.4,12.3533]
[1751419753534,0.2118063,2409.9,2409.8,10.08551824]
[1751419753734,0.2118063,2409.9,2409.8,21.88881824]
[1751419754639,0.2118063,2409.9,2409.8,10.2072]
[1751419755066,0.2118063,2409.9,2409.8,10.0]
[1751419755448,0.2118063,2409.9,2409.8,10.2072]
[1751419755669,0.2118063,2409.9,2409.8,10.0]
[1751419756190,0.2118063,2409.9,2409.8,11.02072]
[1751419756746,0.2118063,2409.9,2409.8,11.22792]
[1751419758284,0.2118063,2409.9,2409.8,13.32602]
[1751419759360,0.00817336,2409.9,2409.8,13.32602]
[1751419760461,0.00817336,2409.9,2409.8,11.77792]
[1751419760862,0.01817336,2409.9,2409.8,11.22792]
[1751419761571,0.01817336,2409.9,2409.8,10.2072]
[1751419761965,0.01817336,2409.9,2409.8,10.0]
[1751419762358,0.01817336,2409.9,2409.7,0.2072]
[1751419762583,0.01817336,2409.9,2409.6,0.2072]
[1751419762756,1.605,2409.8,2409.1,1.6128]
[1751419762969,1.8122,2409.8,2409.3,0.2072]
[1751419763171,4.4982,2409.8,2409.3,0.2072]
[1751419763899,0.2072,2409.7,2409.2,1.32203182]
[1751419764281,4.291,2409.8,2409.2,1.11483182]
[1751419764482,4.291,2409.8,2409.4,0.2072]
[1751419766161,4.291,2409.8,2409.1,10.3073423]
[1751419766409,0.2072,2409.7,2409.2,0.2072]
[1751419767496,0.2072,2409.5,2409.1,12.49882835]
[1751419767661,1.536,2409.4,2409.1,0.5145423]
[1751419769299,1.536,2409.4,2409.1,0.3073423]
[1751419769527,1.7432,2409.4,2409.0,0.2072]
[1751419769792,1.7432,2409.4,2408.8,10.2072]
[1751419769793,0.2072,2409.3,2408.8,10.2072]
[1751419770302,0.2072,2409.3,2408.8,0.2072]
[1751419770891,0.2072,2409.3,2408.8,1.41361504]
[1751419771208,0.2072,2409.3,2408.8,0.2072]
[1751419771413,0.2072,2409.3,2408.8,10.2072]
[1751419772012,0.2072,2409.3,2409.1,0.02]
[1751419772212,0.2072,2409.3,2409.1,0.33511477]
[1751419772507,0.2072,2409.3,2409.1,0.02]
[1751419776286,0.2072,2409.3,2409.1,0.33345348]
[1751419781214,1.536,2409.4,2409.1,0.33345348]
[1751419783821,1.536,2409.4,2409.1,6.95774288]
[1751419785220,0.2072,2409.5,2409.2,10.71649429]
[1751419785620,0.2072,2409.5,2409.2,7.34078369]
[1751419786694,0.2072,2409.5,2409.4,16.6242894]
[1751419786891,0.2072,2409.6,2409.4,16.6242894]
[1751419787225,4.1759,2409.8,2409.4,16.6242894]
[1751419787226,2.651,2409.8,2409.5,6.6242894]
[1751419788024,2.651,2409.8,2409.6,10.0]
[1751419788216,2.651,2409.8,2409.6,10.2072]
[1751419788698,2.651,2409.8,2409.7,6.6242894]
[1751419789732,2.651,2409.8,2409.7,16.6242894]
[1751419795716,10.349,2409.8,2409.7,18.30743834]
[1751419796645,7.71617336,2409.9,2409.8,10.0]
[1751419796850,7.71617336,2409.9,2409.7,10.16043834]
[1751419797748,7.71217336,2409.9,2409.7,10.16043834]
[1751419798044,0.01817336,2409.9,2409.7,10.16043834]
[1751419798245,0.01817336,2409.9,2409.8,1.01604383]
[1751419798545,0.01817336,2409.9,2409.8,11.01604383]
[1751419804644,0.01817336,2409.9,2409.8,17.64033323]
[1751419805424,0.01817336,2409.9,2409.8,11.01604383]
[1751419805620,0.01817336,2409.9,2409.8,10.0]
[1751419806022,0.22537336,2409.9,2409.4,0.2072]
[1751419806656,0.2072,2409.7,2409.3,0.2072]
[1751419806830,7.674,2409.6,2409.3,0.2072]
[1751419807028,0.2072,2409.5,2409.2,0.71649429]
[1751419807240,7.8802,2409.5,2409.2,0.71649429]
[1751419807452,7.69117336,2409.9,2409.5,1.6215]
[1751419807730,7.69117336,2409.9,2409.5,10.0]
[1751419808053,1.6242,2409.8,2409.3,10.0]
[1751419808354,7.69117336,2409.9,2409.7,10.0]
[1751419808355,0.01817336,2409.9,2409.7,10.0]
[1751419808853,7.67,2409.8,2409.7,10.0]
[1751419809828,0.01817336,2409.9,2409.7,10.0]
[1751419810029,0.01817336,2409.9,2409.8,1.66242894]
[1751419811238,7.68317336,2409.9,2409.8,1.66242894]
[1751419811445,7.68317336,2409.9,2409.7,10.0]
[1751419811741,7.68317336,2409.9,2409.2,8.2457894]
[1751419812074,7.68317336,2409.9,2409.3,10.0]
[1751419812561,7.663,2409.8,2409.3,10.0]
[1751419812758,7.663,2409.8,2409.4,6.6242894]
[1751419812964,7.663,2409.8,2409.5,10.0]
[1751419813762,1.5246,2409.7,2409.1,10.33345348]
[1751419816278,1.5246,2409.7,2409.3,10.0]
[1751419816477,1.5246,2409.7,2409.4,6.6242894]
[1751419816849,1.5246,2409.7,2409.3,10.0]
[1751419817484,0.2072,2409.6,2409.3,10.0]
[1751419817877,0.2072,2409.6,2409.1,10.54065348]
[1751419818053,0.2072,2409.6,2409.1,12.42227777]
[1751419818251,0.2072,2409.6,2409.3,10.0]
[1751419819893,1.5246,2409.7,2409.3,10.0]
[1751419820056,1.7318,2409.7,2409.3,10.2072]
[1751419820949,1.5246,2409.7,2409.1,2.21507777]
[1751419821152,0.2072,2409.5,2409.1,2.42227777]
[1751419821354,0.2072,2409.5,2409.2,11.90665672]
[1751419824287,0.01817336,2409.9,2409.5,10.0]
[1751419824692,0.01817336,2409.9,2409.7,6.6242894]
[1751419827188,0.01817336,2409.9,2409.8,10.0]
[1751419828362,0.01817336,2409.9,2409.6,10.0]
[1751419829064,0.01817336,2409.9,2409.6,10.78035529]
[1751419831995,1.5857,2409.8,2409.1,0.33345348]
[1751419832196,1.5857,2409.8,2409.2,10.0]
[1751419832495,1.5857,2409.8,2409.1,6.95774288]
[1751419832496,1.5857,2409.8,2409.4,10.0]
[1751419833468,1.5857,2409.8,2409.2,6.6242894]
[1751419833669,1.5857,2409.8,2409.3,10.0]
[1751419834172,0.2072,2409.6,2409.3,10.0]
[1751419834368,0.2072,2409.6,2409.2,0.69777429]
[1751419834567,9.2643,2409.5,2409.1,10.54065348]
[1751419834972,9.2643,2409.5,2409.3,10.0]
[1751419835207,9.2643,2409.5,2409.1,0.54065348]
[1751419835208,7.619,2409.5,2409.4,16.6242894]
[1751419835409,2.7822,2409.6,2409.4,16.6242894]
[1751419835410,2.575,2409.6,2409.4,16.6242894]
[1751419835567,2.575,2409.6,2409.5,0.2072]
[1751419835767,2.575,2409.6,2409.5,2.04828894]
[1751419836498,2.575,2409.6,2409.5,0.2072]
[1751419839066,2.575,2409.6,2409.5,10.2072]
[1751419839263,1.86067336,2409.9,2409.5,10.2072]
[1751419839264,7.83537336,2409.9,2409.5,10.2072]
[1751419839475,0.22537336,2409.9,2409.7,10.0]
[1751419839701,0.01817336,2409.9,2409.8,16.8314894]
[1751419839889,0.01817336,2409.9,2409.8,18.66508834]
[1751419840699,0.01817336,2409.9,2409.8,19.21508834]
[1751419843788,0.01817336,2409.9,2409.8,18.66508834]
[1751419843988,0.01817336,2409.9,2409.5,0.02]
[1751419844226,0.01817336,2409.9,2409.6,0.2072]
[1751419844785,6.6242894,2409.7,2409.5,0.02]
[1751419844990,9.1541,2409.6,2409.5,0.02]
[1751419845234,11.32451,2409.6,2409.5,0.02]
[1751419846328,1.5571,2409.6,2409.5,0.02]
[1751419846530,11.7261,2409.6,2409.5,0.02]
[1751419847443,11.7251,2409.6,2409.5,0.02]
[1751419853119,11.7251,2409.6,2409.5,0.02]
[1751419854965,11.7111,2409.6,2409.5,0.02]
[1751419855144,11.9183,2409.6,2409.5,0.02]
[1751419859158,10.3612,2409.6,2409.5,0.02]
[1751419861357,7.567,2409.6,2409.5,0.02]
[1751419861557,2.538,2409.7,2409.5,1.68442894]
[1751419861744,7.567,2409.6,2409.5,1.68442894]
[1751419862055,2.538,2409.7,2409.5,1.68442894]
[1751419862261,7.566,2409.6,2409.5,1.68442894]
[1751419863564,2.538,2409.7,2409.6,11.6034]
[1751419863755,10.104,2409.7,2409.6,13.61533183]
[1751419864058,10.104,2409.7,2409.6,10.0]
[1751419864455,9.975,2409.8,2409.6,10.0]
[1751419864699,7.562,2409.7,2409.6,10.0]
[1751419864870,7.561,2409.7,2409.6,10.2072]
[1751419865071,2.55617336,2409.9,2409.7,1.5355]
[1751419865271,2.55617336,2409.9,2409.8,11.17427]
[1751419865559,4.21177336,2409.9,2409.5,0.02]
[1751419865780,1.6556,2409.7,2409.5,0.02]
[1751419865937,7.559,2409.6,2409.5,0.02]
[1751419866327,9.0773,2409.6,2409.5,0.02]
[1751419867370,15.7015894,2409.6,2409.5,0.02]
[1751419867542,18.26944834,2409.6,2409.5,0.02]
[1751419867731,11.64515894,2409.6,2409.5,0.02]
[1751419867931,11.77509327,2409.6,2409.5,0.02]
[1751419870673,4.21609327,2409.6,2409.5,0.02]
[1751419870878,11.73623433,2409.6,2409.5,0.02]
[1751419871077,11.6063,2409.6,2409.5,0.02]
[1751419871282,10.088,2409.6,2409.5,0.02]
[1751419871573,7.55,2409.6,2409.5,0.02]
[1751419872367,7.548,2409.6,2409.5,0.02]
[1751419872887,0.2072,2409.7,2409.5,0.02]
[1751419873054,2.538,2409.6,2409.5,0.02]
[1751419873381,10.084,2409.6,2409.5,0.02]
[1751419873760,0.01817336,2409.9,2409.5,0.02]
[1751419873963,7.545,2409.8,2409.5,2.03157576]
[1751419874288,7.544,2409.7,2409.6,1.5315]
[1751419875077,0.01817336,2409.9,2409.6,1.5315]
[1751419875385,7.543,2409.8,2409.6,1.5315]
[1751419875572,0.01817336,2409.9,2409.6,1.5315]
[1751419875774,7.541,2409.8,2409.7,0.35630758]
[1751419877165,7.541,2409.8,2409.5,2.03157576]
[1751419877352,7.541,2409.8,2409.5,0.02]
[1751419879865,7.533,2409.7,2409.5,0.02]
[1751419882314,2.55617336,2409.9,2409.5,0.02]
[1751419882315,0.01817336,2409.9,2409.5,0.02]
[1751419882460,0.01817336,2409.9,2409.7,10.0]
[1751419882989,0.01817336,2409.9,2409.6,1.5878]
[1751419883161,0.01817336,2409.9,2409.6,2.25125449]
[1751419883465,0.01817336,2409.9,2409.5,0.02]
[1751419883880,0.01817336,2409.9,2409.6,0.2072]
[1751419884597,7.54317336,2409.9,2409.6,0.2072]
[1751419885400,0.17537336,2410.0,2409.6,0.2072]
[1751419886714,7.522,2409.9,2409.6,0.2072]
[1751419887573,1.6324,2409.8,2409.5,0.02]
[1751419890196,0.2072,2409.7,2409.5,0.02]
[1751419891498,0.2072,2409.7,2409.6,1.6289]
[1751419891704,7.522,2409.9,2409.5,0.02]
[1751419891899,7.522,2409.9,2409.5,0.82963473]
[1751419892213,7.522,2409.9,2409.5,0.02]
[1751419893417,0.01,2409.9,2409.5,0.02]
[1751419895914,0.01,2409.9,2409.5,6.64177964]
[1751419898006,0.01,2409.9,2409.6,10.0]
[1751419898402,0.01,2409.9,2409.5,0.02]
[1751419898717,0.01,2409.9,2409.5,1.83714796]
[1751419901414,0.01,2409.9,2409.5,11.83714796]
[1751419901616,0.01,2409.9,2409.6,0.2072]
[1751419901617,7.496,2409.8,2409.6,0.2072]
[1751419903819,7.494,2409.7,2409.6,0.2072]
[1751419905705,0.01,2409.9,2409.6,0.2072]
[1751419906029,7.488,2409.8,2409.6,0.2072]
[1751419906232,0.01,2409.9,2409.6,0.2072]
[1751419906633,7.487,2409.8,2409.6,0.2072]
[1751419910428,7.487,2409.8,2409.5,6.64177964]
[1751419910429,7.487,2409.8,2409.5,0.02]
[1751419910736,7.6942,2409.8,2409.5,0.02]
[1751419912738,7.476,2409.7,2409.6,10.0]
[1751419912939,7.476,2409.7,2409.6,11.66417796]
[1751419913354,0.2072,2409.6,2409.5,0.02]
[1751419915641,2.54822669,2409.6,2409.5,0.02]
[1751419915816,8.28287964,2409.2,2409.1,0.02]
[1751419916014,28.78387964,2409.2,2409.1,0.02]
[1751419916204,36.0372676,2409.2,2409.1,0.02]
[1751419916412,36.16721706,2409.2,2409.1,0.02]
[1751419916945,37.16298456,2409.2,2409.1,0.02]
[1751419917265,32.78798456,2409.2,2409.1,0.02]
[1751419917748,0.7572,2409.1,2409.0,0.02]
[1751419917933,1.5044,2408.9,2408.8,0.02]
[1751419918113,2.0544,2408.7,2408.6,0.02]
[1751419918444,2.18438271,2408.7,2408.6,0.02]
[1751419920944,2.18440075,2408.7,2408.6,0.02]
[1751419921534,10.10440075,2408.7,2408.6,0.02]
[1751419921746,12.98278871,2408.7,2408.6,0.02]
[1751419923625,22.91878871,2408.7,2408.6,0.02]
[1751419924214,22.78878796,2408.7,2408.6,0.02]
[1751419925324,22.23878796,2408.7,2408.6,0.02]
[1751419926555,22.23578796,2408.7,2408.6,0.02]
[1751419928058,14.77778796,2408.7,2408.6,0.02]
[1751419928357,19.3544,2408.7,2408.6,0.02]
[1751419930366,19.3514,2408.7,2408.6,0.02]
[1751419930551,19.3504,2408.7,2408.6,0.02]
[1751419934145,19.48039499,2408.7,2408.6,0.02]
[1751419934969,19.3504,2408.7,2408.6,0.02]
[1751419935158,21.41543515,2408.7,2408.6,0.02]
[1751419937071,21.96543515,2408.7,2408.6,0.02]
[1751419937735,31.96543515,2408.7,2408.6,0.02]
[1751419939738,38.59981127,2408.7,2408.6,0.02]
[1751419940167,39.58913281,2408.7,2408.6,0.02]
[1751419940576,39.5761958,2408.7,2408.6,0.02]
[1751419941374,39.57685558,2408.7,2408.6,0.02]
[1751419942868,49.56085558,2408.7,2408.6,0.02]
[1751419943369,50.7997985,2408.7,2408.6,0.02]
[1751419944109,0.55,2408.6,2408.2,0.02]
[1751419944253,6.02469761,2408.6,2408.2,0.02]
[1751419945351,6.43767859,2408.6,2408.2,0.02]
[1751419946288,1.24398021,2408.3,2408.2,0.02]
[1751419946584,8.54703946,2408.3,2408.2,0.02]
[1751419947552,9.52614143,2408.3,2408.2,0.02]
[1751419947952,12.37362164,2408.3,2408.2,0.02]
[1751419948184,11.12964143,2408.3,2408.2,0.02]
[1751419950472,13.33156533,2408.3,2408.2,0.02]
[1751419950782,11.67964143,2408.3,2408.2,0.02]
[1751419951301,13.33156533,2408.3,2408.2,0.02]
[1751419951992,5.35456533,2408.3,2408.2,0.02]
[1751419952192,3.56603946,2408.3,2408.2,0.02]
[1751419952489,16.60401919,2408.3,2408.2,0.02]
[1751419952786,10.98303946,2408.3,2408.2,0.02]
[1751419952987,12.63496336,2408.3,2408.2,0.02]
[1751419954304,10.98303946,2408.3,2408.2,0.02]
[1751419954473,12.91807946,2408.3,2408.2,0.02]
[1751419955995,13.46807946,2408.3,2408.2,0.02]
[1751419956185,26.74240336,2408.3,2408.2,0.02]
[1751419956389,19.01397612,2408.2,2408.1,0.02]
[1751419956576,21.79490958,2408.2,2408.1,0.02]
[1751419956776,23.30712481,2408.2,2408.1,0.02]
[1751419956978,21.64623081,2408.2,2408.1,0.02]
[1751419957176,32.04411666,2408.2,2408.1,0.02]
[1751419958058,27.94383081,2408.2,2407.8,0.02]
[1751419958262,1.6351,2407.9,2407.8,0.02]
[1751419958478,12.00894432,2407.9,2407.8,0.02]
[1751419959465,0.55,2407.8,2407.6,0.02]
[1751419959667,29.80491558,2407.7,2407.6,0.02]
[1751419959865,38.969697,2407.7,2407.6,0.02]
[1751419960066,40.57114737,2407.7,2407.6,0.02]
[1751419961085,33.93677125,2407.7,2407.6,0.02]
[1751419961270,32.69198983,2407.7,2407.6,0.02]
[1751419961470,33.93677125,2407.7,2407.6,0.02]
[1751419961669,32.69198983,2407.7,2407.6,0.02]
[1751419962801,37.06698983,2407.7,2407.6,0.02]
[1751419963894,38.31177125,2407.7,2407.6,0.02]
[1751419964268,32.28427125,2407.7,2407.6,0.02]
[1751419964484,13.08848983,2407.7,2407.6,0.02]
[1751419964698,20.48848983,2407.7,2407.6,0.02]
[1751419964899,20.48748983,2407.7,2407.6,0.02]
[1751419965086,11.48703946,2407.7,2407.6,0.02]
[1751419965272,11.48703946,2407.7,2407.6,1.5711]
[1751419965468,18.88503946,2407.7,2407.6,1.5711]
[1751419966298,17.89499515,2407.7,2407.6,1.5711]
[1751419967201,2.57699515,2407.7,2407.6,1.5711]
[1751419967400,9.97199515,2407.7,2407.6,1.5711]
[1751419967901,9.842,2407.7,2407.6,1.5711]
[1751419968674,9.84,2407.7,2407.6,1.5711]
[1751419972708,9.833,2407.7,2407.6,1.5711]
[1751419972911,2.447,2407.7,2407.6,12.73021]
[1751419973105,2.447,2407.7,2407.6,22.49098203]
[1751419974308,2.447,2407.7,2407.6,12.73021]
[1751419975579,0.01,2408.5,2407.7,1.6117]
[1751419975781,0.2072,2408.1,2407.9,1.5074]
[1751419976103,7.38,2408.0,2407.9,1.5074]
[1751419976979,0.2072,2408.1,2407.9,1.5074]
[1751419977200,7.378,2408.0,2407.9,1.5074]
[1751419981225,7.388,2408.0,2407.9,1.5074]
[1751419985294,7.388,2408.0,2407.7,1.5345]
[1751419992618,0.2072,2407.7,2407.6,0.02]
[1751419997606,0.33721937,2407.7,2407.6,0.02]
[1751419998007,1.85431937,2407.7,2407.6,0.02]
[1751419998234,3.39998798,2407.7,2407.6,0.02]
[1751419998407,3.98168678,2407.7,2407.6,0.02]
[1751419999219,2.98601817,2407.7,2407.6,0.02]
[1751419999946,3.98132961,2407.7,2407.6,0.02]
[1751420000652,3.98114594,2407.7,2407.6,0.02]
[1751420002436,2.98601817,2407.7,2407.6,0.02]
[1751420002629,3.98077307,2407.7,2407.6,0.02]
[1751420003318,12.19101817,2407.7,2407.6,0.02]
[1751420003728,10.67391817,2407.7,2407.6,0.02]
[1751420005009,0.91891817,2407.7,2407.6,0.02]
[1751420005208,10.09021937,2407.7,2407.6,0.02]
[1751420006216,2.75521937,2407.7,2407.6,6.65382722]
[1751420006546,9.9582,2407.7,2407.6,8.18032722]
[1751420006939,9.9582,2407.7,2407.6,1.5465]
[1751420008651,9.9582,2407.7,2407.6,0.02]
[1751420008852,10.08822398,2407.7,2407.6,0.02]
[1751420010360,9.9582,2407.7,2407.6,0.02]
[1751420010661,9.9512,2407.7,2407.6,0.02]
[1751420012117,9.9202,2407.7,2407.6,18.47857994]
[1751420012467,10.05022066,2407.7,2407.6,10.02]
[1751420013856,10.05022066,2407.7,2407.6,0.02]
[1751420015847,9.9202,2407.7,2407.6,0.02]
[1751420017032,9.9202,2407.7,2407.6,16.65382722]
[1751420017233,0.2072,2407.7,2407.6,16.65382722]
[1751420017436,9.9132,2407.7,2407.6,16.65382722]
[1751420018743,0.2072,2407.7,2407.6,19.84717541]
[1751420018968,7.5202,2407.7,2407.6,19.84717541]
[1751420019268,0.01,2407.8,2407.7,10.0]
[1751420019466,7.323,2407.8,2407.7,1.6079]
[1751420019651,7.323,2407.8,2407.7,2.61533754]
[1751420020240,0.01,2407.8,2407.7,2.61533754]
[1751420021274,7.319,2407.8,2407.7,2.61533754]
[1751420021568,0.01,2407.8,2407.7,2.61533754]
[1751420023875,0.01,2407.8,2407.7,11.6079]
[1751420024038,0.01,2407.8,2407.7,6.63382722]
[1751420024239,0.01,2407.8,2407.7,16.63382722]
[1751420024894,0.2172,2407.8,2407.7,16.63382722]
[1751420025059,0.2172,2407.8,2407.7,10.0]
[1751420025440,0.2172,2407.8,2407.6,10.02]
[1751420029274,0.2172,2407.8,2407.7,6.63382722]
[1751420030565,0.2172,2407.8,2407.6,0.02]
[1751420031258,0.2172,2407.8,2407.6,6.65382722]
[1751420031768,0.2172,2407.8,2407.6,0.02]
[1751420031944,0.97042,2407.8,2407.6,0.02]
[1751420032485,2.54422,2407.8,2407.6,0.02]
[1751420034091,1.5738,2407.7,2407.6,0.02]
[1751420035255,1.70382616,2407.7,2407.6,0.02]
[1751420037588,0.13002616,2407.7,2407.6,0.02]
[1751420037777,9.673,2407.7,2407.6,0.02]
[1751420038173,2.389,2407.7,2407.6,0.02]
[1751420038484,9.672,2407.7,2407.6,0.02]
[1751420039687,9.672,2407.7,2407.6,1.6104]
[1751420039924,0.2172,2407.8,2407.6,1.6104]
[1751420040185,9.67,2407.7,2407.6,1.6104]
[1751420041285,9.67,2407.7,2407.6,8.24422722]
[1751420041602,9.67,2407.7,2407.6,0.02]
[1751420041805,10.78873947,2407.7,2407.6,0.02]
[1751420042301,10.65872,2407.7,2407.6,0.02]
[1751420042601,9.64,2407.7,2407.6,0.02]
[1751420043213,9.64,2407.7,2407.6,10.02]
[1751420044318,9.64,2407.7,2407.6,0.02]
[1751420044505,9.77001265,2407.7,2407.6,0.02]
[1751420044888,9.64,2407.7,2407.6,0.02]
[1751420045092,9.77001506,2407.7,2407.6,0.02]
[1751420045590,9.64,2407.7,2407.6,6.65382722]
[1751420046288,2.362,2407.7,2407.6,6.65382722]
[1751420046479,9.635,2407.7,2407.6,6.65382722]
[1751420057721,9.635,2407.7,2407.6,16.65382722]
[1751420061523,0.2172,2407.8,2407.6,16.65382722]
[1751420061704,2.5792,2407.8,2407.7,1.5134]
[1751420061898,9.8282,2407.8,2407.7,1.5134]
[1751420062343,9.8282,2407.8,2407.6,16.65382722]
[1751420063821,0.2172,2407.8,2407.7,10.0]
[1751420063997,7.4632,2407.8,2407.7,10.0]
[1751420065201,0.2172,2407.8,2407.7,10.0]
[1751420065394,7.4622,2407.8,2407.7,10.0]
[1751420074752,0.01,2408.0,2407.7,11.69183892]
[1751420074912,0.01,2408.5,2408.4,18.23832722]
[1751420075112,0.01,2408.5,2408.4,11.6045]
[1751420075321,0.01,2408.5,2408.4,10.0]
[1751420076604,2.345,2408.5,2408.4,10.0]
[1751420076811,0.2072,2408.4,2408.0,10.0]
[1751420077246,3.45602,2408.5,2408.0,10.0]
[1751420079537,1.5844,2408.4,2408.0,10.0]
[1751420081418,1.5844,2408.4,2408.1,6.63382722]
[1751420081761,0.01,2408.5,2408.3,6.63382722]
[1751420082258,2.345,2408.5,2408.4,10.0]
[1751420082435,9.7712,2408.5,2408.4,10.0]